bitfinex-derivatives/quotes_SOLF0:USTF0_20251115
["timestamp","ask_amount","ask_price","bid_price","bid_amount"]
[1763166449191,0.0536738,140.92,140.88,3.3]
[1763166449380,3.3036738,140.92,140.87,6.37102676]
[1763166449582,3.3036738,140.92,140.87,3.3]
[1763166450182,3.3036738,140.92,140.84,3.3]
[1763166450382,3.29682323,140.89,140.84,3.3]
[1763166450583,0.04762062,140.88,140.84,3.3]
[1763166452881,3.29762062,140.88,140.84,3.3]
[1763166453489,3.29762062,140.88,140.81,3.34]
[1763166453691,3.19944095,140.86,140.81,3.34]
[1763166453992,0.05257838,140.85,140.81,3.34]
[1763166454293,21.27,140.99,140.79,3.34]
[1763166454294,3.20298147,140.84,140.79,3.34]
[1763166454491,3.19975052,140.83,140.75,3.34]
[1763166454691,0.04485269,140.8,140.75,3.34]
[1763166455092,0.04485269,140.8,140.76,3.34]
[1763166455483,3.19485269,140.8,140.73,3.34]
[1763166455693,3.19842759,140.78,140.73,3.34]
[1763166455893,3.19615668,140.77,140.73,3.34]
[1763166456092,0.05296449,140.76,140.73,3.34]
[1763166456794,3.15,140.93,140.74,3.34]
[1763166457091,3.15,140.93,140.75,3.34]
[1763166458001,3.15,140.84,140.83,0.04726244]
[1763166458300,3.15,140.84,140.82,0.05177764]
[1763166458488,3.19914614,140.84,140.82,0.05365821]
[1763166458899,0.04914614,140.84,140.82,0.05365821]
[1763166459401,3.19914614,140.84,140.82,0.05365821]
[1763166459902,0.04914614,140.84,140.82,0.05365821]
[1763166460798,3.19914614,140.84,140.82,0.05365821]
[1763166462499,3.15,140.95,140.82,3.39365821]
[1763166462804,3.15,140.95,140.83,9.7359]
[1763166463199,3.15,140.95,140.83,3.34]
[1763166463497,3.19648429,140.9,140.88,0.04612764]
[1763166463800,3.20435592,140.9,140.78,9.7382]
[1763166463997,3.15,140.9,140.79,3.34]
[1763166464399,3.15,140.9,140.8,6.3973]
[1763166464603,3.15,140.9,140.81,3.34]
[1763166464800,0.05260171,140.87,140.84,0.05087575]
[1763166464999,0.05260171,140.87,140.84,3.39087575]
[1763166467208,3.20260171,140.87,140.84,3.39087575]
[1763166467598,0.05260171,140.87,140.84,3.39087575]
[1763166470207,3.20260171,140.87,140.84,0.05087575]
[1763166473313,3.20260171,140.87,140.78,3.34]
[1763166473612,3.15,140.87,140.77,3.34]
[1763166474012,3.15,140.87,140.77,9.7387]
[1763166474407,0.0469959,140.83,140.77,9.7387]
[1763166476413,3.1969959,140.83,140.79,3.34]
[1763166476716,0.05056023,140.82,140.79,3.34]
[1763166476921,0.05172842,140.82,140.79,3.34]
[1763166477112,0.05172842,140.82,140.8,3.34]
[1763166478207,0.05172842,140.82,140.81,3.34]
[1763166481723,0.05172842,140.82,140.78,3.34]
[1763166482221,0.05172842,140.82,140.79,3.34]
[1763166483616,0.05172842,140.82,140.8,9.5674]
[1763166484922,0.05172842,140.82,140.75,3.17]
[1763166484923,3.17172842,140.82,140.75,3.17]
[1763166485517,3.17172842,140.82,140.78,3.17]
[1763166486214,3.17172842,140.82,140.75,3.17]
[1763166486420,3.12,140.79,140.75,3.17]
[1763166487228,3.12,140.79,140.71,3.17]
[1763166487434,3.12,140.75,140.71,3.17]
[1763166487618,0.05259231,140.74,140.71,3.17]
[1763166488430,3.12,140.81,140.75,3.17]
[1763166489321,3.17098221,140.79,140.77,0.04819729]
[1763166489520,3.16519396,140.79,140.77,0.04819729]
[1763166489924,3.14,140.78,140.69,3.11]
[1763166490828,0.05205027,140.75,140.69,3.11]
[1763166491029,0.05043575,140.73,140.69,3.11]
[1763166491537,0.05043575,140.73,140.66,3.11]
[1763166491538,3.19043575,140.73,140.66,3.11]
[1763166491739,0.04786082,140.71,140.66,3.11]
[1763166492234,0.04786082,140.71,140.66,9.53749919]
[1763166492428,0.04786082,140.71,140.67,3.11]
[1763166492819,0.04786082,140.71,140.7,3.11]
[1763166493230,0.04786082,140.71,140.7,4.53]
[1763166493531,3.14,140.8,140.72,3.11]
[1763166494228,3.14,140.8,140.73,6.4004]
[1763166494432,3.14,140.8,140.7,3.11]
[1763166494625,3.14,140.77,140.75,0.05087173]
[1763166494826,3.18607744,140.77,140.75,0.05225584]
[1763166495026,3.18607744,140.77,140.7,3.11]
[1763166497535,3.18607744,140.77,140.67,3.11]
[1763166497736,3.18490557,140.73,140.67,3.11]
[1763166498126,0.04490557,140.73,140.67,3.11]
[1763166498528,0.04490557,140.73,140.68,3.11]
[1763166498837,0.04490557,140.73,140.71,3.11]
[1763166500124,3.14,140.81,140.72,3.11]
[1763166500734,3.14,140.81,140.73,3.11]
[1763166501140,0.05331958,140.78,140.76,0.04490557]
[1763166501437,3.19331958,140.78,140.76,0.04490557]
[1763166501639,3.14,140.86,140.78,3.11]
[1763166502232,3.14,140.86,140.75,3.11]
[1763166502431,3.14,140.86,140.73,6.42749919]
[1763166502432,3.14,140.81,140.7,9.53749919]
[1763166502740,3.14,140.81,140.71,3.11]
[1763166502940,0.04737797,140.77,140.75,3.1560635]
[1763166503138,0.05078999,140.77,140.75,3.1560635]
[1763166503539,0.05078999,140.77,140.75,9.5556635]
[1763166503746,3.14,140.82,140.76,3.11]
[1763166504441,21.65969656,140.89,140.77,3.11]
[1763166504744,0.04849669,140.84,140.82,0.05143185]
[1763166504946,3.19301306,140.84,140.82,0.05143185]
[1763166505339,3.19301306,140.84,140.77,3.11]
[1763166506342,3.19301306,140.84,140.79,3.15934298]
[1763166506538,3.19268446,140.83,140.79,3.15934298]
[1763166506744,0.05461052,140.82,140.8,0.04985514]
[1763166510632,3.19461052,140.82,140.8,0.04985514]
[1763166510832,3.19461052,140.82,140.75,3.11]
[1763166510833,3.19461052,140.82,140.72,9.53749919]
[1763166511046,3.14,140.81,140.72,3.11]
[1763166511942,3.14,140.77,140.75,0.04625983]
[1763166513034,0.05194056,140.78,140.75,3.15625983]
[1763166514251,3.41194056,140.78,140.75,0.04625983]
[1763166517645,3.41194056,140.78,140.69,6.42749919]
[1763166517839,3.36,140.77,140.68,6.42749919]
[1763166518040,3.36,140.77,140.67,9.78749919]
[1763166518844,3.40849442,140.73,140.67,9.78749919]
[1763166519042,3.40849442,140.73,140.67,3.36]
[1763166519241,3.40849442,140.73,140.64,8.53901361]
[1763166519242,3.40849442,140.73,140.65,6.42749919]
[1763166519439,0.05251399,140.7,140.65,3.36]
[1763166519748,0.05251399,140.7,140.66,3.36]
[1763166520046,3.41251399,140.7,140.64,6.42749919]
[1763166520235,3.41251399,140.7,140.63,3.36]
[1763166521049,3.41251399,140.7,140.64,3.36]
[1763166523148,0.05251399,140.7,140.65,3.36]
[1763166524152,0.05251399,140.7,140.67,3.36]
[1763166524737,3.36,140.76,140.69,3.36]
[1763166526054,0.04618001,140.74,140.71,3.40723895]
[1763166526254,0.04943213,140.74,140.71,3.41064134]
[1763166526956,3.36,140.8,140.71,3.41064134]
[1763166527251,3.36,140.8,140.72,9.7609]
[1763166527850,0.04850053,140.77,140.75,0.05417393]
[1763166528849,3.40850053,140.77,140.75,0.05417393]
[1763166530151,0.04850053,140.77,140.75,0.05417393]
[1763166530952,0.04850053,140.77,140.75,3.41417393]
[1763166531455,3.40850053,140.77,140.75,0.05417393]
[1763166531648,0.04850053,140.77,140.75,0.05417393]
[1763166532156,3.40850053,140.77,140.75,0.05417393]
[1763166534365,0.04850053,140.77,140.75,3.41417393]
[1763166537367,3.36,140.85,140.76,3.36]
[1763166538267,0.05232619,140.82,140.79,3.41413472]
[1763166539061,3.41232619,140.82,140.79,3.41413472]
[1763166540172,0.05232619,140.82,140.79,3.41413472]
[1763166542457,3.41232619,140.82,140.79,0.05413472]
[1763166542861,3.41232619,140.82,140.73,3.36]
[1763166543164,3.36,140.82,140.73,3.36]
[1763166543973,0.0543376,140.79,140.77,3.18]
[1763166544872,3.3843376,140.79,140.76,0.05253224]
[1763166546272,0.0543376,140.79,140.76,3.23253224]
[1763166547174,3.3843376,140.79,140.76,0.05253224]
[1763166548877,3.33,140.77,140.67,9.60749919]
[1763166549073,3.33,140.77,140.68,3.18]
[1763166549775,0.04762343,140.74,140.71,3.27524801]
[1763166552071,3.35762343,140.74,140.71,0.04524801]
[1763166553970,0.04762343,140.74,140.71,3.27524801]
[1763166555075,0.04762343,140.74,140.73,3.23]
[1763166555561,6.58585244,140.85,140.73,3.23]
[1763166555764,9.89585244,140.88,140.76,3.23]
[1763166555970,9.89585244,140.88,140.78,3.23]
[1763166555971,3.31,140.88,140.78,3.23]
[1763166556279,3.31,140.88,140.79,3.23]
[1763166556776,0.05334271,140.85,140.83,3.23]
[1763166556981,0.05040371,140.85,140.83,3.27676206]
[1763166557870,4.14806853,140.94,140.83,3.27676206]
[1763166557871,3.31,140.94,140.85,3.23]
[1763166558067,3.31,140.94,140.86,3.23]
[1763166558871,0.04753815,140.91,140.89,0.04818812]
[1763166560265,3.35753815,140.91,140.89,0.04818812]
[1763166560473,3.35753815,140.91,140.8,3.23]
[1763166560474,3.31,140.89,140.8,3.23]
[1763166561372,0.04890058,140.86,140.83,0.04798414]
[1763166562067,3.35890058,140.86,140.83,0.04798414]
[1763166563178,3.31,140.95,140.83,3.27798414]
[1763166563379,3.31,140.95,140.83,3.23]
[1763166563979,3.31,140.95,140.85,3.23]
[1763166564376,0.04769375,140.91,140.89,0.05413971]
[1763166564678,0.04769375,140.91,140.89,3.28413971]
[1763166567370,88.59,141.03,140.89,3.28413971]
[1763166567571,88.59,141.03,140.88,4.14806853]
[1763166567572,3.31,141.02,140.9,3.23]
[1763166568683,85.28,141.03,140.85,8.53901361]
[1763166568684,3.31,140.96,140.95,0.04636924]
[1763166568983,3.31,140.96,140.88,3.23]
[1763166569181,7.45806853,140.99,140.88,3.23]
[1763166569381,3.31,140.99,140.88,3.23]
[1763166569586,3.31,140.99,140.89,3.23]
[1763166569772,0.05226873,140.95,140.93,0.04874316]
[1763166571484,3.36226873,140.95,140.93,0.04874316]
[1763166571680,3.36226873,140.95,140.86,3.23]
[1763166571879,3.31,140.95,140.86,3.23]
[1763166572586,0.04579182,140.92,140.89,3.2819293]
[1763166573493,3.35579182,140.92,140.89,0.0519293]
[1763166573884,0.04579182,140.92,140.89,3.2719293]
[1763166575183,0.04579182,140.92,140.9,3.22]
[1763166581993,0.04579182,140.92,140.89,0.0519293]
[1763166582199,0.04579182,140.92,140.89,3.2719293]
[1763166583598,3.17579182,140.92,140.89,3.2719293]
[1763166584102,0.04579182,140.92,140.89,3.2719293]
[1763166587113,3.17579182,140.92,140.89,0.0519293]
[1763166587808,0.04579182,140.92,140.89,3.2719293]
[1763166589315,0.04579182,140.92,140.9,3.22]
[1763166598318,3.17579182,140.92,140.89,3.2719293]
[1763166600316,3.17579182,140.92,140.89,0.0519293]
[1763166600522,0.04579182,140.92,140.89,3.2719293]
[1763166601425,3.17579182,140.92,140.89,0.0519293]
[1763166603725,0.04579182,140.92,140.89,3.3119293]
[1763166604717,3.30579182,140.92,140.89,3.3119293]
[1763166606515,3.30579182,140.92,140.89,0.0519293]
[1763166606708,3.30579182,140.92,140.89,3.3119293]
[1763166606709,0.04579182,140.92,140.89,3.3119293]
[1763166607120,0.04579182,140.92,140.89,9.73942849]
[1763166607319,0.04579182,140.92,140.9,3.26]
[1763166607922,3.30579182,140.92,140.89,6.47942849]
[1763166608515,0.04579182,140.92,140.9,3.26]
[1763166608818,0.04579182,140.92,140.91,3.26]
[1763166612421,0.04579182,140.92,140.9,9.72541654]
[1763166612626,0.04579182,140.92,140.9,3.26]
[1763166612826,3.16579182,140.92,140.89,6.51734584]
[1763166613223,3.16579182,140.92,140.89,0.0519293]
[1763166615731,3.12,140.91,140.85,6.46541654]
[1763166615922,3.12,140.91,140.84,6.46541654]
[1763166616223,3.12,140.91,140.83,6.46541654]
[1763166616628,3.12,140.91,140.83,9.72541654]
[1763166616831,3.16632217,140.88,140.86,0.04463966]
[1763166617133,3.17230875,140.88,140.86,0.04463966]
[1763166618734,0.05230875,140.88,140.86,3.30463966]
[1763166619836,3.17230875,140.88,140.86,0.04463966]
[1763166620435,0.05230875,140.88,140.86,3.30463966]
[1763166620736,0.05230875,140.88,140.86,0.04463966]
[1763166621828,3.17230875,140.88,140.86,0.04463966]
[1763166622133,3.17230875,140.88,140.8,3.3]
[1763166622134,3.12,140.87,140.8,3.3]
[1763166622329,3.12,140.87,140.81,3.3]
[1763166622639,3.12,140.88,140.79,9.76541654]
[1763166622837,3.12,140.88,140.78,6.46541654]
[1763166623025,0.05261449,140.84,140.77,6.46541654]
[1763166623230,3.12,140.83,140.76,9.76541654]
[1763166623433,3.17053749,140.81,140.77,3.3]
[1763166623640,0.05249427,140.8,140.77,3.3]
[1763166623941,0.05249427,140.8,140.77,9.76541654]
[1763166624127,0.05249427,140.8,140.78,3.3]
[1763166625732,0.05249427,140.8,140.78,9.76541654]
[1763166625933,0.05249427,140.8,140.79,3.3]
[1763166626138,3.12,140.84,140.79,3.3]
[1763166626344,3.12,140.89,140.79,3.3]
[1763166627147,0.04783556,140.85,140.83,0.05249427]
[1763166627347,3.12,140.84,140.83,0.05249427]
[1763166628439,3.12,140.84,140.77,3.3]
[1763166629436,0.04551382,140.82,140.77,3.3]
[1763166633350,3.16551382,140.82,140.74,3.3]
[1763166633546,28.55923695,140.9,140.74,3.3]
[1763166633547,3.17262712,140.79,140.74,3.3]
[1763166633747,3.30302796,140.78,140.74,3.3]
[1763166633946,3.29992369,140.77,140.74,3.3]
[1763166634251,0.04613448,140.77,140.74,3.3]
[1763166634442,3.29613448,140.77,140.71,3.25]
[1763166638551,3.29613448,140.77,140.68,9.6528]
[1763166638743,0.05080162,140.74,140.69,3.25]
[1763166638947,3.30080162,140.74,140.69,3.25]
[1763166643851,3.30080162,140.74,140.69,9.6523]
[1763166644047,3.30080162,140.74,140.7,3.25]
[1763166644852,3.30080162,140.74,140.67,3.25]
[1763166645058,21.00940318,140.85,140.64,3.25]
[1763166645059,3.25,140.71,140.64,3.25]
[1763166645353,3.29683232,140.69,140.64,3.25]
[1763166645548,0.04596942,140.68,140.64,3.25]
[1763166645949,3.29596942,140.68,140.6,3.25]
[1763166646150,0.04542281,140.65,140.6,3.25]
[1763166646354,0.04542281,140.65,140.63,3.25]
[1763166648454,0.04542281,140.65,140.63,9.655]
[1763166648754,3.25,140.71,140.64,3.25]
[1763166648955,3.25,140.71,140.65,3.25]
[1763166649264,3.25,140.71,140.63,2.72625263]
[1763166649265,3.25,140.71,140.64,3.25]
[1763166649751,3.30056852,140.69,140.66,0.04542281]
[1763166650358,0.05056852,140.69,140.66,3.29542281]
[1763166651759,0.05056852,140.69,140.66,9.69912281]
[1763166651959,0.05056852,140.69,140.66,3.29542281]
[1763166655157,0.05056852,140.69,140.68,3.25]
[1763166656062,0.05056852,140.69,140.66,6.02167544]
[1763166656256,0.05056852,140.69,140.67,3.25]
[1763166657662,3.30056852,140.69,140.66,0.04542281]
[1763166658356,0.05056852,140.69,140.66,3.29542281]
[1763166658862,3.30056852,140.69,140.66,0.04542281]
[1763166660352,3.25,140.68,140.58,3.25]
[1763166661257,3.25,140.63,140.55,10.47874698]
[1763166661566,3.25,140.63,140.55,3.25]
[1763166661764,0.05281108,140.6,140.55,3.25]
[1763166661970,0.04736927,140.59,140.55,3.25]
[1763166666569,0.04736927,140.59,140.53,4.15768973]
[1763166666570,0.04736927,140.59,140.57,3.3]
[1763166666867,3.29,140.65,140.57,3.3]
[1763166667062,3.29,140.65,140.59,6.4067]
[1763166667262,3.29,140.68,140.6,3.3]
[1763166667869,0.04479043,140.65,140.63,0.04736927]
[1763166668770,3.33479043,140.65,140.63,0.04736927]
[1763166668972,0.04479043,140.65,140.63,0.04736927]
[1763166669671,0.04479043,140.65,140.63,3.34736927]
[1763166671874,3.29,140.71,140.64,3.2]
[1763166672268,3.29,140.71,140.62,4.15768973]
[1763166672573,3.29,140.71,140.63,3.2]
[1763166672869,3.29,140.71,140.66,0.04943594]
[1763166673069,0.04541818,140.68,140.66,3.24943594]
[1763166674168,0.04541818,140.68,140.66,9.65313594]
[1763166674367,3.29,140.74,140.67,3.2]
[1763166674882,3.29,140.8,140.69,3.2]
[1763166675079,3.29,140.8,140.71,7.35768973]
[1763166675469,3.34382217,140.77,140.74,0.05113343]
[1763166675673,3.29,140.77,140.68,3.2]
[1763166676472,3.29,140.77,140.66,3.2]
[1763166676776,3.33908827,140.73,140.7,0.05366411]
[1763166676979,3.33596667,140.73,140.7,0.04588078]
[1763166677174,0.04596667,140.73,140.7,3.24588078]
[1763166678172,0.04596667,140.73,140.71,6.4014]
[1763166678376,3.29,140.79,140.72,3.2]
[1763166678868,3.29,140.79,140.72,9.6008]
[1763166679078,3.29,140.79,140.73,3.2]
[1763166679277,0.05261242,140.77,140.75,0.05214839]
[1763166679574,0.05261242,140.77,140.75,3.25214839]
[1763166680578,3.34261242,140.77,140.75,0.05214839]
[1763166681777,3.34261242,140.77,140.69,3.2]
[1763166682083,3.34261242,140.77,140.66,3.2]
[1763166682281,3.29,140.77,140.66,3.2]
[1763166682979,3.34345427,140.73,140.7,0.0483493]
[1763166685083,3.34345427,140.73,140.7,3.2483493]
[1763166685281,0.05345427,140.73,140.7,3.2483493]
[1763166686995,0.05345427,140.73,140.7,9.6501493]
[1763166687191,0.05345427,140.73,140.71,3.2]
[1763166690188,3.34345427,140.73,140.7,0.0483493]
[1763166690591,0.05345427,140.73,140.7,3.2483493]
[1763166690784,0.05345427,140.73,140.71,3.2]
[1763166691991,3.34345427,140.73,140.7,0.0483493]
[1763166692989,3.34345427,140.73,140.62,6.46490278]
[1763166693195,3.29,140.73,140.62,3.2]
[1763166693388,3.29,140.71,140.6,3.2]
[1763166693993,0.05156712,140.67,140.64,0.03191343]
[1763166694197,3.17,140.66,140.64,0.03191343]
[1763166696507,3.22156712,140.67,140.64,0.03191343]
[1763166697695,0.05156712,140.67,140.64,3.23191343]
[1763166699399,0.05156712,140.67,140.66,3.2]
[1763166699900,0.05156712,140.67,140.64,3.23191343]
[1763166701597,0.05156712,140.67,140.65,3.2]
[1763166701996,0.05156712,140.67,140.65,4.62]
[1763166702197,0.05156712,140.67,140.65,3.2]
[1763166702699,3.17,140.74,140.66,3.2]
[1763166703096,3.17,140.77,140.66,3.2]
[1763166703691,0.04537463,140.73,140.7,3.24545964]
[1763166707810,0.04537463,140.73,140.7,9.64735964]
[1763166708013,0.04537463,140.73,140.7,3.24545964]
[1763166709216,0.04537463,140.73,140.71,9.6014]
[1763166709627,0.04537463,140.73,140.72,3.2]
[1763166711311,3.17,140.8,140.73,3.2]
[1763166712026,3.17,140.8,140.75,3.2]
[1763166712327,0.05117695,140.79,140.76,3.2503397]
[1763166712532,3.22117695,140.79,140.76,0.0503397]
[1763166713423,3.17,140.78,140.7,3.2]
[1763166714023,3.17,140.78,140.71,3.2]
[1763166714225,0.04626849,140.76,140.73,3.24942138]
[1763166714821,0.04626849,140.76,140.75,3.2]
[1763166715020,10.36356816,140.7,140.69,8.53901361]
[1763166715222,3.17,140.81,140.69,22.70895015]
[1763166715422,3.17,140.81,140.74,6.4001]
[1763166715925,3.17,140.79,140.71,1.7418348]
[1763166716126,3.21681811,140.79,140.71,1.7418348]
[1763166716327,3.21681811,140.79,140.74,0.0290941]
[1763166717229,6.3989,140.77,140.74,0.0290941]
[1763166718834,3.21681811,140.79,140.74,0.0290941]
[1763166719531,3.17,140.77,140.74,0.0290941]
[1763166720127,3.17,140.75,140.74,0.0290941]
[1763166720332,3.17,140.75,140.66,21.67377043]
[1763166720535,3.17,140.75,140.65,8.53901361]
[1763166720536,3.17,140.8,140.68,8.53901361]
[1763166720738,3.17,140.8,140.7,4.14807442]
[1763166721231,0.05369977,140.76,140.7,4.14807442]
[1763166722329,3.22369977,140.76,140.67,12.68708803]
[1763166722531,0.05362951,140.73,140.67,12.68708803]
[1763166723026,0.05362951,140.73,140.67,4.14807442]
[1763166723535,0.05362951,140.73,140.67,12.68708803]
[1763166724133,0.05362951,140.73,140.67,4.14807442]
[1763166724827,0.05362951,140.73,140.66,29.3868117]
[1763166725023,0.05362951,140.73,140.67,8.53901361]
[1763166726428,0.05362951,140.73,140.66,8.53901361]
[1763166726732,0.05259281,140.71,140.65,8.53901361]
[1763166727124,0.05259281,140.71,140.66,8.53901361]
[1763166727330,0.05259281,140.71,140.68,8.53901361]
[1763166727526,3.29,140.79,140.68,15.76416541]
[1763166727729,9.6882,140.79,140.69,8.53901361]
[1763166727928,9.6882,140.79,140.7,8.53901361]
[1763166728129,9.6882,140.79,140.69,8.53901361]
[1763166728638,0.05078886,140.75,140.73,0.04796526]
[1763166728838,9.6874,140.81,140.72,8.53901361]
[1763166729036,3.29,140.78,140.71,8.53901361]
[1763166729232,3.29,140.78,140.68,15.76416541]
[1763166729838,0.05018966,140.74,140.72,0.04926802]
[1763166730026,0.05199885,140.74,140.72,0.04526624]
[1763166735036,9.64219885,140.74,140.72,0.04526624]
[1763166735342,3.19,140.73,140.72,0.04526624]
[1763166735537,0.05199885,140.74,140.72,0.04526624]
[1763166738552,3.19,140.8,140.72,0.04526624]
[1763166738946,3.19,140.8,140.72,2.76651161]
[1763166739440,0.04858616,140.77,140.72,11.30552522]
[1763166739843,0.04858616,140.77,140.72,2.76651161]
[1763166740041,3.23858616,140.77,140.72,0.04526624]
[1763166740242,3.19,140.76,140.72,0.04526624]
[1763166741350,9.5902,140.74,140.72,0.04526624]
[1763166741739,3.19,140.74,140.72,0.04526624]
[1763166741950,0.04858616,140.77,140.72,0.04526624]
[1763166741951,9.5896,140.76,140.72,0.04526624]
[1763166742353,0.04858616,140.77,140.72,0.04526624]
[1763166742743,3.23858616,140.77,140.72,0.04526624]
[1763166743650,3.23858616,140.77,140.72,8.58427985]
[1763166744550,3.19,140.76,140.72,8.58427985]
[1763166744751,0.04858616,140.77,140.72,8.58427985]
[1763166744948,0.04858616,140.77,140.73,8.53901361]
[1763166745148,0.04858616,140.77,140.74,8.53901361]
[1763166746352,0.04858616,140.77,140.75,8.53901361]
[1763166746759,0.04858616,140.77,140.72,0.04526624]
[1763166746760,3.23858616,140.77,140.74,8.53901361]
[1763166747549,0.04858616,140.77,140.74,8.53901361]
[1763166748356,3.23858616,140.77,140.74,8.53901361]
[1763166748558,3.23858616,140.77,140.73,8.53901361]
[1763166749558,3.23858616,140.77,140.72,8.58427985]
[1763166750459,0.04858616,140.77,140.73,8.53901361]
[1763166750659,3.23858616,140.77,140.73,8.53901361]
[1763166750860,3.19,140.76,140.72,0.04526624]
[1763166751763,3.19,140.74,140.72,0.04526624]
[1763166752256,3.19,140.73,140.72,0.04526624]
[1763166752653,0.05292079,140.74,140.72,0.04526624]
[1763166753251,3.24292079,140.74,140.72,0.04526624]
[1763166753949,3.12,140.73,140.72,0.04526624]
[1763166754459,3.12,140.73,140.66,8.53901361]
[1763166754661,3.12,140.7,140.67,8.53901361]
[1763166754857,3.12,140.7,140.66,8.53901361]
[1763166755265,3.16758814,140.69,140.67,0.05001819]
[1763166755455,3.16888459,140.69,140.67,0.05315731]
[1763166755762,9.57148459,140.69,140.67,0.05315731]
[1763166756064,3.12,140.68,140.67,0.05315731]
[1763166756362,3.12,140.68,140.62,8.53901361]
[1763166756662,3.12,140.66,140.58,8.53901361]
[1763166756969,3.12,140.6,140.55,11.26025898]
[1763166757167,3.12,140.69,140.56,8.53901361]
[1763166757350,3.12,140.63,140.56,8.53901361]
[1763166757553,3.12,140.63,140.55,11.26025898]
[1763166757760,3.12,140.63,140.55,2.72124537]
[1763166758067,3.12,140.63,140.54,8.53901361]
[1763166758257,3.12,140.63,140.54,2.72124537]
[1763166758459,0.04879106,140.6,140.54,2.72124537]
[1763166758658,0.04879106,140.6,140.54,11.26025898]
[1763166758960,0.04879106,140.6,140.54,8.53901361]
[1763166759154,3.16879106,140.6,140.53,8.53901361]
[1763166759362,0.05251113,140.58,140.53,8.53901361]
[1763166760362,0.05251113,140.58,140.51,20.04778772]
[1763166760363,0.05251113,140.58,140.52,8.53901361]
[1763166760959,0.05251113,140.58,140.53,8.53901361]
[1763166761162,0.05251113,140.58,140.54,8.53901361]
[1763166761364,0.05251113,140.58,140.55,8.53901361]
[1763166763163,0.05251113,140.58,140.54,7.2392673]
[1763166763470,0.05251113,140.58,140.52,8.53901361]
[1763166763678,0.05251113,140.58,140.51,15.77828091]
[1763166763968,3.17251113,140.58,140.5,8.53901361]
[1763166764473,3.17251113,140.58,140.47,9.77711732]
[1763166764674,0.04904738,140.54,140.48,15.77828091]
[1763166764970,0.04904738,140.54,140.48,7.2392673]
[1763166765360,0.04904738,140.54,140.45,15.77828091]
[1763166765567,0.05234774,140.51,140.45,15.77828091]
[1763166765765,0.05234774,140.51,140.45,17.01656084]
[1763166766077,0.05234774,140.51,140.45,8.47754723]
[1763166766373,0.05234774,140.51,140.45,1.23827993]
[1763166766666,0.05234774,140.51,140.46,7.2392673]
[1763166766877,3.12,140.58,140.46,7.2392673]
[1763166767062,3.12,140.58,140.49,7.2392673]
[1763166768067,7.2392673,140.67,140.52,0.0505662]
[1763166768068,3.16750191,140.55,140.52,0.0505662]
[1763166768270,3.16737403,140.55,140.52,0.05222316]
[1763166769771,0.04737403,140.55,140.52,0.05222316]
[1763166770168,3.16737403,140.55,140.52,0.05222316]
[1763166770766,0.04737403,140.55,140.52,0.05222316]
[1763166771073,3.16737403,140.55,140.52,0.05222316]
[1763166772773,3.12,140.54,140.52,0.05222316]
[1763166773570,9.5296,140.54,140.52,0.05222316]
[1763166773770,3.12,140.53,140.52,0.05222316]
[1763166773964,3.12,140.53,140.46,7.2392673]
[1763166774174,3.12,140.53,140.43,7.2392673]
[1763166774378,3.12,140.53,140.41,7.2392673]
[1763166774577,3.12,140.5,140.41,8.47794391]
[1763166774980,0.0524971,140.47,140.41,8.47794391]
[1763166780788,3.1724971,140.47,140.41,7.2392673]
[1763166781283,3.12,140.46,140.41,7.2392673]
[1763166781485,3.12,140.46,140.39,1.23887504]
[1763166781693,0.04821565,140.44,140.39,1.23887504]
[1763166781893,3.16821565,140.44,140.3,8.53901361]
[1763166782092,0.04881402,140.38,140.36,7.2392673]
[1763166782286,0.04854632,140.38,140.36,7.2392673]
[1763166782687,3.12,140.48,140.37,1.42]
[1763166782894,3.12,140.48,140.38,7.2392673]
[1763166783097,3.12,140.48,140.35,1.23929417]
[1763166783297,3.12,140.48,140.37,7.2392673]
[1763166783696,0.04484409,140.44,140.41,0.04870275]
[1763166783883,3.08,140.43,140.41,0.04870275]
[1763166784393,3.08,140.43,140.35,1.23929417]